fUSD/lending_fUSD_20250417
["ID","MTS","AMOUNT","RATE_DAILY","PERIOD"]
[358305992,1744915632278,-150.0,0.00054767,2]
[358305993,1744915632303,-1000.0,0.00054794,120]
[358305994,1744915632328,-199.4390795,0.00061789,2]
[358305995,1744915632349,-153.0,0.0006181,60]
[358305996,1744915632371,-153.0,0.0006181,60]
[358305997,1744915632394,-153.0,0.00061818,60]
[358305998,1744915632415,-153.0,0.00061818,60]
[358305999,1744915632436,-153.0,0.00061818,60]
[358306000,1744915632458,-153.0,0.00061818,60]
[358306001,1744915632484,-153.0,0.00061818,60]
[358306002,1744915632506,-153.0,0.00061818,60]
[358306003,1744915632527,-153.0,0.00061876,60]
[358306004,1744915632705,-153.0,0.00061876,60]
[358306005,1744915632729,-153.0,0.00061876,60]
[358306006,1744915632751,-173.04772154,0.00061889,30]
[358306007,1744915632772,-153.0,0.00061889,60]
[358306008,1744915632793,-153.0,0.00061889,60]
[358306009,1744915632815,-153.0,0.00061889,60]
[358306010,1744915632836,-153.0,0.00061889,60]
[358306011,1744915632859,-153.0,0.00061889,60]
[358306012,1744915632880,-153.0,0.00061889,60]
[358306013,1744915632902,-600.0,0.00061954,20]
[358306014,1744915632926,-153.0,0.00061955,60]
[358306015,1744915632947,-153.0,0.00061955,60]
[358306016,1744915632968,-153.0,0.00061963,60]
[358306017,1744915632989,-153.0,0.00061963,60]
[358306018,1744915633010,-153.0,0.00061963,60]
[358306019,1744915633031,-153.0,0.00061963,60]
[358306020,1744915633052,-153.0,0.00061963,60]
[358306021,1744915633073,-153.0,0.00061963,60]
[358306022,1744915633093,-153.0,0.00062029,60]
[358306023,1744915633114,-153.0,0.00062029,60]
[358306024,1744915633133,-153.0,0.00062029,60]
[358306025,1744915633153,-153.0,0.00062035,60]
[358306026,1744915633174,-153.0,0.00062035,60]
[358306027,1744915633194,-153.0,0.00062035,60]
[358306028,1744915633214,-153.0,0.00062035,60]
[358306029,1744915633234,-153.0,0.00062035,60]
[358306030,1744915633254,-153.0,0.00062035,60]
[358306031,1744915633274,-152.22,0.00062109,120]
[358306032,1744915633295,-153.0,0.00062109,60]
[358306033,1744915633315,-153.0,0.00062109,60]
[358306034,1744915633336,-153.0,0.00062109,60]
[358306035,1744915633356,-153.0,0.00062109,60]
[358306036,1744915633376,-150.99,0.00062617,2]
[358306037,1744915633396,-150.99,0.00062618,30]
[358306038,1744915633416,-450.62206889,0.00062764,30]
[358306039,1744915633436,-199.43907948,0.00063374,2]
[358306040,1744915633456,-250.0,0.00063463,120]
[358306041,1744915633478,-500.0,0.0006421,2]
[358306042,1744915633499,-8056.76338757,0.00064279,2]
[358306043,1744915637118,-1261.40631669,0.00064279,2]
[358306051,1744915832320,-463.14705203,0.00059368,30]
[358306052,1744915832332,-36.85294797,0.00059368,30]
[358306053,1744915832341,-350.0,0.00061105,111]
[358306054,1744915832351,-350.0,0.00062825,111]
[358306055,1744915832361,-500.0,0.00064279,2]
[358306056,1744915832370,-14581.83029574,0.00064279,2]
[358306058,1744915832380,-199.43907948,0.00064959,2]
[358306060,1744915832389,-1000.0,0.00065059,120]
[358306062,1744915832398,-500.0,0.000651,7]
[358306064,1744915832408,-239.43,0.00065122,120]
[358306065,1744915832417,-622.82,0.00065411,30]
[358306066,1744915832427,-349.73,0.00065411,2]
[358306067,1744915832436,-350.0,0.0006559,111]
[358306068,1744915832444,-315.9481,0.00065653,2]
[358306069,1744915832455,-224.6048,0.00065653,2]
[358306070,1744915832469,-425.83277255,0.00065752,120]
[358306071,1744915832478,-500.0,0.00065752,120]
[358306072,1744915832488,-896.06847172,0.00065753,60]
[358306073,1744915832499,-3356.61226451,0.00065753,60]
[358306090,1744915838205,-9594.84578672,0.00065753,60]
[358306091,1744915838218,-804.50000002,0.00065753,60]
[358306092,1744915838280,-375.9636326,0.00065753,60]
[358306093,1744915838321,-955.85407767,0.00065753,60]
[358306094,1744915838379,-540.66869107,0.00065753,60]
[358306095,1744915838491,-8475.48707569,0.00065753,60]
[358306096,1744915838502,-25000.0,0.00065753,60]
[358306097,1744915838512,-8719.01856692,0.00065753,60]
[358306098,1744915838523,-25000.0,0.00065753,60]
[358306099,1744915838535,-25000.0,0.00065753,60]
[358306100,1744915838545,-5809.08264076,0.00065753,60]
[358306101,1744915838555,-200.0,0.00066222,30]
[358306102,1744915838564,-200.0,0.0006681,2]
[358306103,1744915838575,-711.75,0.00067678,30]
[358306105,1744915838584,-349.81,0.00067678,30]
[358306107,1744915838593,-900.0,0.00068,120]
[358306109,1744915838603,-1000.0,0.00068393,30]
[358306111,1744915838614,-2500.0,0.00068393,2]
[358306113,1744915838624,-1810.3253,0.00068393,2]
[358306115,1744915838633,-449.0682,0.00068393,120]
[358306117,1744915838642,-8645.8092,0.00068393,2]
[358306118,1744915838652,-286.56743682,0.00068393,15]
[358306120,1744915838662,-37244.236,0.00068393,2]
[358306122,1744915838671,-227.26,0.00068483,30]
[358306124,1744915838681,-6833.9138657,0.00068486,5]
[358306126,1744915838690,-12617.4031706,0.00068486,5]
[358306128,1744915838699,-615.947,0.00068492,120]
[358306130,1744915838710,-500.0,0.00068493,120]
[358306132,1744915838720,-500.0,0.00068493,120]
[358306134,1744915838730,-500.0,0.00068493,120]
[358306136,1744915838739,-466.23040942,0.00068493,120]
[358306138,1744915838748,-500.0,0.00068493,120]
[358306140,1744915838757,-500.0,0.00068493,120]
[358306142,1744915838767,-246.84299524,0.00068493,120]
[358306143,1744915838776,-500.0,0.00068493,2]
[358306145,1744915838785,-500.0,0.00068493,120]
[358306147,1744915838795,-500.0,0.00068493,120]
[358306149,1744915838804,-500.0,0.00068493,120]
[358306151,1744915838814,-637.76,0.00068493,120]
[358306153,1744915838824,-500.0,0.00068493,120]
[358306155,1744915838833,-183.96,0.00068493,120]
[358306157,1744915838842,-846.048474,0.00068493,120]
[358306159,1744915838851,-500.0,0.00068493,120]
[358306161,1744915838860,-500.0,0.00068493,120]
[358306163,1744915838869,-500.0,0.00068493,120]
[358306165,1744915838878,-454.08,0.00068493,120]
[358306167,1744915838888,-501.44870047,0.00068493,90]
[358306168,1744915838897,-500.0,0.00068493,120]
[358306170,1744915838907,-324.6655686,0.00068493,120]
[358306173,1744915838917,-500.0,0.00068493,120]
[358306174,1744915838926,-500.0,0.00068493,120]
[358306177,1744915838936,-500.0,0.00068493,120]
[358306178,1744915838945,-500.0,0.00068493,120]
[358306180,1744915838955,-500.0,0.00068493,120]
[358306182,1744915838965,-500.0,0.00068493,120]
[358306184,1744915838974,-500.0,0.00068493,120]
[358306186,1744915838983,-238.5840142,0.00068493,120]
[358306188,1744915838993,-500.0,0.00068493,120]
[358306190,1744915839002,-256.59,0.00068493,120]
[358306192,1744915839011,-500.0,0.00068493,120]
[358306194,1744915839020,-500.0,0.00068493,120]
[358306196,1744915839030,-502.58368993,0.00068493,120]
[358306198,1744915839040,-175.12161151,0.00068493,14]
[358306200,1744915839050,-511.72,0.00068493,120]
[358306202,1744915839059,-500.0,0.00068493,120]
[358306204,1744915839069,-535.14564087,0.00068493,120]
[358306206,1744915839078,-500.0,0.00068493,120]
[358306208,1744915839087,-500.0,0.00068493,120]
[358306210,1744915839096,-500.0,0.00068493,120]
[358306212,1744915839105,-500.0,0.00068493,120]
[358306214,1744915839115,-500.0,0.00068493,120]
[358306216,1744915839124,-497.83,0.00068493,120]
[358306218,1744915839136,-268.81872538,0.00068493,120]
[358306220,1744915839145,-500.0,0.00068493,120]
[358306222,1744915839154,-500.0,0.00068493,120]
[358306224,1744915839164,-500.0,0.00068493,120]
[358306225,1744915839173,-500.0,0.00068493,120]
[358306227,1744915839183,-500.0,0.00068493,120]
[358306229,1744915839193,-505.12418633,0.00068493,120]
[358306232,1744915839203,-5000.0,0.00068493,120]
[358306233,1744915839213,-500.0,0.00068493,120]
[358306235,1744915839222,-500.0,0.00068493,120]
[358306237,1744915839232,-500.0,0.00068493,120]
[358306239,1744915839241,-500.0,0.00068493,120]
[358306241,1744915839250,-500.0,0.00068493,120]
[358306243,1744915839259,-505.58987851,0.00068493,120]
[358306245,1744915839269,-500.0,0.00068493,120]
[358306247,1744915839278,-500.0,0.00068493,120]
[358306249,1744915839287,-500.0,0.00068493,120]
[358306251,1744915839297,-500.0,0.00068493,120]
[358306253,1744915839306,-500.0,0.00068493,120]
[358306255,1744915839315,-281.51301944,0.00068493,120]
[358306257,1744915839324,-500.0,0.00068493,120]
[358306258,1744915839333,-500.0,0.00068493,120]
[358306260,1744915839342,-500.0,0.00068493,120]
[358306262,1744915839352,-500.0,0.00068493,120]
[358306264,1744915839361,-500.0,0.00068493,120]
[358306266,1744915839370,-4192.2,0.00068493,120]
[358306268,1744915839379,-539.38,0.00068493,120]
[358306270,1744915839389,-195.55,0.00068493,120]
[358306272,1744915839398,-555.75552247,0.00068493,120]
[358306274,1744915839407,-500.0,0.00068493,120]
[358306276,1744915839416,-1000.0,0.00068493,2]
[358306278,1744915839426,-1000.0,0.00068493,2]
[358306280,1744915839435,-1000.0,0.00068493,2]
[358306282,1744915839444,-1000.0,0.00068493,2]
[358306284,1744915839454,-1000.0,0.00068493,2]
[358306286,1744915839463,-1000.0,0.00068493,2]
[358306288,1744915839481,-1000.0,0.00068493,2]
[358306290,1744915839492,-1000.0,0.00068493,2]
[358306292,1744915839502,-1000.0,0.00068493,2]
[358306294,1744915839512,-1000.0,0.00068493,2]
[358306296,1744915839521,-1000.0,0.00068493,2]
[358306298,1744915839534,-1000.0,0.00068493,2]
[358306300,1744915839544,-1000.0,0.00068493,2]
[358306302,1744915839554,-1000.0,0.00068493,2]
[358306304,1744915839564,-1000.0,0.00068493,2]
[358306306,1744915839575,-1000.0,0.00068493,2]
[358306308,1744915839585,-1000.0,0.00068493,2]
[358306310,1744915839595,-1000.0,0.00068493,2]
[358306312,1744915839605,-1000.0,0.00068493,2]
[358306314,1744915839615,-1000.0,0.00068493,2]
[358306316,1744915839626,-1000.0,0.00068493,2]
[358306318,1744915839636,-1000.0,0.00068493,2]
[358306320,1744915839645,-1000.0,0.00068493,2]
[358306322,1744915839655,-1000.0,0.00068493,2]
[358306323,1744915839665,-1000.0,0.00068493,2]
[358306325,1744915839674,-1000.0,0.00068493,2]
[358306327,1744915839684,-1000.0,0.00068493,2]
[358306329,1744915839694,-1000.0,0.00068493,2]
[358306330,1744915839706,-1000.0,0.00068493,2]
[358306332,1744915839716,-1000.0,0.00068493,2]
[358306334,1744915839727,-1000.0,0.00068493,2]
[358306336,1744915839737,-1000.0,0.00068493,2]
[358306337,1744915839747,-1000.0,0.00068493,2]
[358306338,1744915839757,-1000.0,0.00068493,2]
[358306339,1744915839766,-1000.0,0.00068493,2]
[358306340,1744915839776,-1000.0,0.00068493,2]
[358306341,1744915839786,-1000.0,0.00068493,2]
[358306342,1744915839796,-1000.0,0.00068493,2]
[358306343,1744915839806,-1000.0,0.00068493,2]
[358306344,1744915839816,-1000.0,0.00068493,2]
[358306345,1744915839827,-1000.0,0.00068493,2]
[358306346,1744915839837,-604.0,0.00068493,2]
[358306347,1744915839847,-1000.0,0.00068493,2]
[358306348,1744915839857,-1000.0,0.00068493,2]
[358306349,1744915839867,-1000.0,0.00068493,2]
[358306350,1744915839876,-1000.0,0.00068493,2]
[358306351,1744915839886,-1000.0,0.00068493,2]
[358306352,1744915839897,-1000.0,0.00068493,2]
[358306353,1744915839907,-1000.0,0.00068493,2]
[358306354,1744915839916,-1000.0,0.00068493,2]
[358306356,1744915839926,-1000.0,0.00068493,2]
[358306358,1744915839936,-1000.0,0.00068493,2]
[358306359,1744915839946,-1000.0,0.00068493,2]
[358306360,1744915839957,-1000.0,0.00068493,2]
[358306361,1744915839967,-1000.0,0.00068493,2]
[358306362,1744915839978,-1000.0,0.00068493,2]
[358306363,1744915839988,-1000.0,0.00068493,2]
[358306364,1744915839998,-1000.0,0.00068493,2]
[358306365,1744915840007,-1000.0,0.00068493,2]
[358306366,1744915840017,-1000.0,0.00068493,2]
[358306367,1744915840026,-1000.0,0.00068493,2]
[358306368,1744915840036,-1000.0,0.00068493,2]
[358306369,1744915840045,-1000.0,0.00068493,2]
[358306370,1744915840055,-1000.0,0.00068493,2]
[358306371,1744915840064,-1000.0,0.00068493,2]
[358306372,1744915840074,-1000.0,0.00068493,2]
[358306373,1744915840083,-1000.0,0.00068493,2]
[358306374,1744915840093,-1000.0,0.00068493,2]
[358306375,1744915840103,-1000.0,0.00068493,2]
[358306376,1744915840112,-1000.0,0.00068493,2]
[358306377,1744915840122,-1000.0,0.00068493,2]
[358306378,1744915840132,-1000.0,0.00068493,2]
[358306379,1744915840143,-1000.0,0.00068493,2]
[358306380,1744915840152,-1000.0,0.00068493,2]
[358306381,1744915840162,-1000.0,0.00068493,2]
[358306382,1744915840172,-1000.0,0.00068493,2]
[358306383,1744915840182,-1000.0,0.00068493,2]
[358306384,1744915840192,-1000.0,0.00068493,2]
[358306385,1744915840201,-1000.0,0.00068493,2]
[358306386,1744915840212,-1000.0,0.00068493,2]
[358306387,1744915840222,-840.0,0.00068493,2]
[358306388,1744915840232,-857.5646813,0.00068533,5]
[358306389,1744915840242,-162.11189394,0.00068533,28]
[358306390,1744915840251,-991.52339573,0.0006858,15]
[358306391,1744915840261,-77408.9809027,0.00068633,5]
[358306392,1744915840271,-286.56743676,0.00069672,15]
[358306393,1744915840281,-703.05,0.00069786,2]
[358306394,1744915840290,-991.52339565,0.00069838,15]
[358306395,1744915840300,-3006.62721683,0.0006988,120]
[358306396,1744915840309,-841.53304396,0.0007085,42]
[358306397,1744915840319,-286.56743676,0.0007095,15]
[358306398,1744915840328,-991.52339565,0.00071096,15]
[358306399,1744915840338,-44951.5752,0.00071132,120]
[358306400,1744915840348,-227.26,0.00071222,30]
[358306401,1744915840358,-423.44789392,0.00071231,120]
[358306402,1744915840367,-305.59206933,0.00071231,120]
[358306403,1744915840377,-500.0,0.00071231,120]
[358306404,1744915840386,-250.0,0.00071231,120]
[358306405,1744915840396,-284.15,0.00071231,120]
[358306406,1744915840405,-193.06052952,0.00071231,120]
[358306407,1744915840415,-500.0,0.00071231,120]
[358306408,1744915840425,-500.0,0.00071231,120]
[358306409,1744915840435,-500.0,0.00071231,120]
[358306410,1744915840444,-500.0,0.00071231,120]
[358306411,1744915840582,-417.85994885,0.00071231,120]
[358306412,1744915840591,-500.0,0.00071231,120]
[358306413,1744915840602,-500.0,0.00071231,120]
[358306414,1744915840612,-500.0,0.00071231,120]
[358306415,1744915840622,-500.0,0.00071231,120]
[358306416,1744915840631,-500.0,0.00071231,120]
[358306417,1744915840641,-500.0,0.00071231,120]
[358306418,1744915840651,-500.0,0.00071231,2]
[358306419,1744915840660,-500.0,0.00071231,120]
[358306420,1744915840670,-500.0,0.00071231,120]
[358306421,1744915840679,-500.0,0.00071231,120]
[358306422,1744915840689,-500.0,0.00071231,120]
[358306423,1744915840699,-500.0,0.00071231,120]
[358306424,1744915840709,-500.0,0.00071231,120]
[358306425,1744915840719,-500.0,0.00071231,120]
[358306426,1744915840729,-500.0,0.00071231,120]
[358306427,1744915840739,-500.0,0.00071231,120]
[358306428,1744915840748,-500.0,0.00071231,120]
[358306429,1744915840758,-500.0,0.00071231,120]
[358306430,1744915840767,-500.0,0.00071231,120]
[358306431,1744915840776,-500.0,0.00071231,120]
[358306432,1744915840786,-500.0,0.00071231,120]
[358306433,1744915840796,-500.0,0.00071231,120]
[358306434,1744915840805,-550.18,0.00071231,120]
[358306435,1744915840814,-577.84690308,0.00071232,120]
[358306436,1744915840824,-469.27944747,0.00071232,120]
[358306437,1744915840834,-500.0,0.00071232,120]
[358306438,1744915840844,-500.0,0.00071232,2]
[358306439,1744915840854,-500.0,0.00071232,120]
[358306440,1744915840863,-637.76,0.00071232,120]
[358306441,1744915840872,-500.0,0.00071232,120]
[358306442,1744915840881,-464.59557478,0.00071232,120]
[358306443,1744915840891,-500.0,0.00071232,120]
[358306444,1744915840900,-500.0,0.00071232,120]
[358306445,1744915840910,-500.0,0.00071232,120]
[358306446,1744915840919,-500.0,0.00071232,120]
[358306447,1744915840929,-500.0,0.00071232,120]
[358306448,1744915840938,-500.0,0.00071232,120]
[358306449,1744915840947,-500.0,0.00071232,120]
[358306451,1744915840956,-615.22,0.00071232,120]
[358306452,1744915840966,-500.0,0.00071232,120]
[358306453,1744915840975,-178.19639329,0.00071232,120]
[358306454,1744915840985,-500.0,0.00071232,120]
[358306455,1744915840994,-500.0,0.00071232,120]
[358306456,1744915841003,-500.0,0.00071232,120]
[358306457,1744915841012,-500.0,0.00071232,120]
[358306458,1744915841022,-500.0,0.00071232,120]
[358306459,1744915841032,-500.0,0.00071232,120]
[358306460,1744915841042,-592.8873033,0.00071232,120]
[358306461,1744915841052,-543.21077969,0.00071232,120]
[358306462,1744915841062,-392.5413115,0.00071232,120]
[358306463,1744915841071,-524.80659142,0.00071232,120]
[358306464,1744915841081,-500.0,0.00071232,120]
[358306465,1744915841091,-500.0,0.00071232,120]
[358306466,1744915841100,-500.0,0.00071232,120]
[358306467,1744915841110,-4192.2,0.00071232,120]
[358306468,1744915841120,-168.1,0.00071991,2]
[358306469,1744915841129,-500.0,0.00072048,120]
[358306470,1744915841138,-500.0,0.00072048,120]
[358306471,1744915841148,-500.0,0.00072048,120]
[358306472,1744915841157,-500.0,0.00072048,120]
[358306473,1744915841167,-500.0,0.00072048,120]
[358306474,1744915841176,-467.50721301,0.00072048,120]
[358306475,1744915841186,-500.0,0.00072048,120]
[358306476,1744915841195,-167.35159465,0.00072048,120]
[358306477,1744915841205,-500.0,0.00072048,120]
[358306478,1744915841215,-500.0,0.00072048,120]
[358306479,1744915841225,-500.0,0.00072048,120]
[358306480,1744915841234,-500.0,0.00072048,120]
[358306481,1744915841243,-500.0,0.00072048,120]
[358306482,1744915841253,-500.0,0.00072048,120]
[358306483,1744915841263,-500.0,0.00072048,120]
[358306484,1744915841273,-500.0,0.00072048,120]
[358306485,1744915841281,-816.06,0.00072048,120]
[358306486,1744915841291,-259.78532601,0.00072048,120]
[358306487,1744915841301,-1195.19,0.00072049,120]
[358306488,1744915841310,-500.0,0.00072049,120]
[358306489,1744915841319,-5090.1,0.00072049,120]
[358306490,1744915841329,-692.84,0.00072049,118]
[358306491,1744915841339,-500.0,0.00072049,120]
[358306492,1744915841348,-500.0,0.00072049,120]
[358306493,1744915841358,-500.0,0.00072049,120]
[358306494,1744915841367,-500.0,0.00072049,120]
[358306495,1744915841376,-464.34969705,0.00072049,120]
[358306496,1744915841386,-500.0,0.00072049,120]
[358306497,1744915841395,-500.0,0.00072049,120]
[358306498,1744915841404,-500.0,0.00072049,120]
[358306499,1744915841414,-331.25,0.00072049,120]
[358306500,1744915841423,-500.0,0.00072049,120]
[358306501,1744915841433,-700.95,0.00072049,120]
[358306502,1744915841442,-500.0,0.00072049,120]
[358306503,1744915841451,-500.0,0.00072049,120]
[358306504,1744915841461,-500.0,0.00072049,120]
[358306505,1744915841471,-500.0,0.00072049,8]
[358306506,1744915841480,-500.0,0.00072049,120]
[358306507,1744915841489,-500.0,0.00072049,120]
[358306508,1744915841498,-500.0,0.00072049,120]
[358306509,1744915841507,-500.0,0.00072049,120]
[358306510,1744915841518,-500.0,0.00072049,120]
[358306511,1744915841531,-500.0,0.00072049,120]
[358306512,1744915841541,-773.18,0.00072049,120]
[358306513,1744915841550,-500.0,0.00072049,120]
[358306514,1744915841560,-500.0,0.00072049,120]
[358306515,1744915841569,-196.92,0.00072049,120]
[358306516,1744915841579,-500.0,0.00072049,120]
[358306517,1744915841589,-703.05,0.0007205,2]
[358306518,1744915841598,-286.56743676,0.00072229,15]
[358306519,1744915841609,-991.52339565,0.00072353,15]
[358306520,1744915841620,-302.21795159,0.000726,2]
[358306521,1744915841629,-1000.0,0.00073191,120]
[358306522,1744915841639,-286.56743676,0.00073507,15]
[358306523,1744915841648,-991.52339565,0.00073611,15]
[358306524,1744915841658,-31837.98255755,0.00073798,120]
[358306525,1744915841667,-2000.0,0.000738,2]
[358306526,1744915841677,-155.39,0.00073961,120]
[358306527,1744915841687,-197.86592163,0.0007397,120]
[358306528,1744915841697,-579.37757354,0.0007397,120]
[358306529,1744915841707,-579.37757354,0.0007397,120]
[358306530,1744915841717,-579.37757354,0.0007397,120]
[358306531,1744915841726,-579.37757354,0.0007397,120]
[358306532,1744915841736,-579.37757354,0.0007397,120]
[358306533,1744915841745,-579.37757354,0.0007397,120]
[358306534,1744915841755,-579.37757354,0.0007397,120]
[358306535,1744915841765,-579.37757354,0.0007397,120]
[358306536,1744915841775,-579.37757354,0.0007397,120]
[358306537,1744915841784,-579.37757354,0.0007397,120]
[358306538,1744915841794,-579.37757354,0.0007397,120]
[358306539,1744915841804,-579.37757354,0.0007397,120]
[358306540,1744915841813,-579.37757354,0.0007397,120]
[358306541,1744915841823,-579.37757354,0.0007397,120]
[358306542,1744915841833,-579.37757354,0.0007397,120]
[358306543,1744915841842,-579.37757354,0.0007397,120]
[358306544,1744915841853,-579.37757354,0.0007397,120]
[358306545,1744915841863,-579.37757354,0.0007397,120]
[358306546,1744915841872,-579.37757354,0.0007397,120]
[358306547,1744915841882,-630.07311122,0.0007397,120]
[358306548,1744915841892,-630.07311122,0.0007397,120]
[358306549,1744915841902,-630.07311122,0.0007397,120]
[358306550,1744915841912,-630.07311122,0.0007397,120]
[358306551,1744915841922,-630.07311122,0.0007397,120]
[358306552,1744915841932,-630.07311122,0.0007397,120]
[358306553,1744915841942,-630.07311122,0.0007397,120]
[358306554,1744915841952,-630.07311122,0.0007397,120]
[358306555,1744915841962,-500.0,0.00073971,120]
[358306556,1744915841972,-500.0,0.00073971,120]
[358306557,1744915841982,-500.0,0.00073971,120]
[358306558,1744915841991,-666.49,0.00073971,2]
[358306559,1744915842001,-529.01667345,0.00073971,120]
[358306560,1744915842011,-500.0,0.00073971,120]
[358306561,1744915842020,-500.0,0.00073971,120]
[358306562,1744915842030,-500.0,0.00073971,2]
[358306563,1744915842040,-500.0,0.00073971,120]
[358306564,1744915842050,-500.0,0.00073971,120]
[358306565,1744915842059,-500.0,0.00073971,120]
[358306566,1744915842069,-500.0,0.00073971,120]
[358306567,1744915842078,-500.0,0.00073971,120]
[358306568,1744915842088,-500.0,0.00073971,120]
[358306569,1744915842098,-500.0,0.00073971,120]
[358306570,1744915842107,-239.24,0.00073971,120]
[358306571,1744915842117,-500.0,0.00073971,120]
[358306572,1744915842127,-500.0,0.00073971,30]
[358306573,1744915842137,-615.4455218,0.00073971,120]
[358306574,1744915842147,-500.0,0.00073971,120]
[358306575,1744915842157,-500.0,0.00073971,120]
[358306576,1744915842167,-500.0,0.00073971,120]
[358306577,1744915842176,-500.0,0.00073971,120]
[358306578,1744915842186,-500.0,0.00073971,120]
[358306579,1744915842195,-500.0,0.00073971,120]
[358306580,1744915842205,-500.0,0.00073971,120]
[358306581,1744915842215,-483.39,0.00073971,120]
[358306582,1744915842224,-500.0,0.00073971,120]
[358306583,1744915842234,-500.0,0.00073971,120]
[358306584,1744915842243,-500.0,0.00073971,120]
[358306585,1744915842252,-500.0,0.00073971,120]
[358306586,1744915842261,-500.0,0.00073971,120]
[358306587,1744915842271,-486.83,0.00073971,120]
[358306588,1744915842283,-500.0,0.00073971,120]
[358306589,1744915842292,-500.0,0.00073971,120]
[358306590,1744915842302,-500.0,0.00073971,120]
[358306591,1744915842312,-500.0,0.00073971,120]
[358306592,1744915842322,-193.60708736,0.00073971,120]
[358306593,1744915842332,-500.0,0.00073971,120]
[358306594,1744915842341,-500.0,0.00073971,120]
[358306595,1744915842351,-500.0,0.00073971,120]
[358306596,1744915842361,-500.0,0.00073971,120]
[358306597,1744915842370,-500.0,0.00073971,120]
[358306598,1744915842380,-514.07057761,0.00073971,120]
[358306599,1744915842390,-500.0,0.00073971,120]
[358306600,1744915842400,-500.0,0.00073971,120]
[358306601,1744915842409,-500.0,0.00073971,120]
[358306602,1744915842419,-500.0,0.00073971,120]
[358306603,1744915842429,-500.0,0.00073971,120]
[358306604,1744915842438,-500.0,0.00073971,120]
[358306605,1744915842448,-500.0,0.00073971,120]
[358306606,1744915842458,-500.0,0.00073971,120]
[358306607,1744915842467,-500.0,0.00073971,20]
[358306608,1744915842477,-538.08483942,0.00073971,120]
[358306609,1744915842486,-201.73619272,0.00073971,120]
[358306610,1744915842495,-500.0,0.00073971,120]
[358306611,1744915842504,-500.0,0.00073971,120]
[358306612,1744915842513,-500.0,0.00073971,120]
[358306613,1744915842523,-500.0,0.00073971,120]
[358306614,1744915842534,-500.0,0.00073971,120]
[358306615,1744915842543,-500.0,0.00073971,120]
[358306616,1744915842553,-500.0,0.00073971,120]
[358306617,1744915842563,-250.0,0.00073971,120]
[358306618,1744915842574,-500.0,0.00073971,120]
[358306619,1744915842583,-500.0,0.00073971,120]
[358306620,1744915842593,-499.25942145,0.00073971,120]
[358306621,1744915842603,-500.0,0.00073971,120]
[358306622,1744915842613,-523.81081175,0.00073971,120]
[358306623,1744915842623,-500.0,0.00073971,120]
[358306624,1744915842632,-500.0,0.00073971,120]
[358306625,1744915842642,-500.0,0.00073971,120]
[358306626,1744915842651,-568.08947205,0.00073971,120]
[358306627,1744915842660,-500.0,0.00073971,120]
[358306628,1744915842669,-500.0,0.00073971,120]
[358306629,1744915842679,-500.0,0.00073971,120]
[358306630,1744915842689,-500.0,0.00073971,120]
[358306631,1744915842698,-500.0,0.00073971,120]
[358306632,1744915842707,-500.0,0.00073971,120]
[358306633,1744915842717,-500.0,0.00073971,120]
[358306634,1744915842727,-500.0,0.00073971,120]